Cogmind - Beta 16 @@@ ROGUE MODE // 2025.11.17 @ 11:52:20 Player: VivI Result: Self-destructed Performance ------------- Evolutions (1) 500 Regions Visited (3) 600 Robots Destroyed (18) 90 Value Destroyed (462) 462 Prototype IDs (1) 20 Alien Tech Used (0) 0 Bonus (0) 0 TOTAL SCORE: 1672 Bonus ------- None Cogmind --------- Core Integrity 209/400 Matter 284/450 Energy 52/100 System Corruption 0% Temperature Cool (0) Movement Core (50) Location -9/Materials Parts ------- > --- POWER (2) -------- (None) > --- PROPULSION (2) --- (None) > --- UTILITY (2) ------ Large Matter Pod > --- WEAPON (3) ------- (None) > --- INVENTORY (5) ---- Heat Sink Large Matter Pod (0) ECM Suite Propulsion Shielding Peak State ------------ > --- POWER ------------ (None) > --- PROPULSION ------- Light Treads Light Treads > --- UTILITY ---------- Experimental Sensor Array Terrain Scanner > --- WEAPON ----------- Grenade Launcher Grenade Launcher > --- INVENTORY -------- Heat Sink Large Matter Pod Welding Torch [Rating: 14] Favorites ----------- Power Light Ion Engine Engine Light Ion Engine Propulsion Light Treads Treads Light Treads Utility Terrain Scanner Device Terrain Scanner Storage Small Storage Unit Weapon Grenade Launcher Energy Gun Particle Gun Ballistic Gun Assault Rifle Launcher Grenade Launcher Special Weapon Welding Torch Build | -11 -10 -10 -9 ------- Run | Yrd Mat Min Mat Slots Evolved 2 | . . . 2 Power 1 | . . . 1 Propulsion . | . . . . Utility . | . . . . Weapon 1 | . . . 1 Parts Attached 14 | 6 4 1 3 Power 1 | 1 . . . Engine 1 | 1 . . . Core . | . . . . Reactor . | . . . . Propulsion 2 | 2 . . . Treads 2 | 2 . . . Leg . | . . . . Wheel . | . . . . Hover . | . . . . Flight . | . . . . Utility 5 | 1 1 1 2 Device 2 | . 1 1 . Storage 3 | 1 . . 2 Processor . | . . . . Hackware . | . . . . Protection . | . . . . Artifact . | . . . . Weapon 6 | 2 3 . 1 Energy Gun 1 | . 1 . . Energy Cannon . | . . . . Ballistic Gun 2 | 2 . . . Ballistic Cannon . | . . . . Launcher 2 | . 2 . . Special Weapon 1 | . . . 1 Impact Weapon . | . . . . Slashing Weapon . | . . . . Piercing Weapon . | . . . . Special Melee Weapon . | . . . . Unidentified Prototypes 1 | . . 1 . Parts Lost 7 | . 1 . 6 Power 1 | . 1 . . Propulsion 2 | . . . 2 Utility 1 | . . . 1 Weapon 3 | . . . 3 Highest Loss Streak 6 | . 1 . 6 To Critical Strikes . | . . . . Average Backups 2 | . 2 3 4 Power . | . . . . Propulsion . | . . . . Utility 2 | . 1 2 4 Weapon . | . . . . Tool/Special . | . . . . Unused Backups 3 | . . . 3 Power . | . . . . Propulsion . | . . . . Utility 3 | . . . 3 Weapon . | . . . . Tool/Special . | . . . . Average Slot Usage (%) 77 | . 83 85 54 Treads 25 | . 27 28 18 Device 15 | . 13 24 12 Storage 9 | . 14 3 2 Ballistic Gun 5 | . 8 . . Launcher 19 | . 15 28 20 Peak Build Rating 14 | 6 7 14 14 Average Rating 8 | 4 6 12 12 On Entrance 6 | . 6 6 14 Avg Prop Armor Cover (%) . | . . . . Naked Turns . | . . . . Heaviest Build 12 | 11 12 12 10 Greatest Support 40 | 40 40 40 40 Greatest Overweight (x) 2 | . 1 . 2 Average Overweight (x) . | . . . . Largest Inventory Capacity 8 | 8 8 8 5 Average Capacity 6 | 6 8 5 5 Most Carried 5 | 2 5 5 5 Average Carried 2 | . 2 3 4 Final Capacity 8 | 8 8 5 5 Final Carried 5 | . 3 5 4 Class Distribution -------------------- 100% | Mutant Dominant Class ---------------- Mutant | -10/Materials Mutant | -10/Mines Mutant | -9/Materials Resources | -11 -10 -10 -9 ----------- Run | Yrd Mat Min Mat Matter Collected 647 | 174 399 50 24 Remotely . | . . . . Salvage Created 345 | . 135 6 204 Parts 25 | . 4 1 20 Haulers Intercepted . | . . . . Recyclers Shooed . | . . . . Parts Field Recycled . | . . . . Retrieved Matter . | . . . . Parts Self-Destructed . | . . . . Prevented . | . . . . Parts Restored . | . . . . Kills | -11 -10 -10 -9 ------- Run | Yrd Mat Min Mat Combat Hostiles Destroyed 12 | . 3 . 9 Guns 3 | . 3 . . AOE 9 | . . . 9 Classes Destroyed 8 | . 1 1 6 Worker 2 | . . . 2 Builder 2 | . . . 2 Tunneler 1 | . . 1 . Mechanic 1 | . . . 1 Swarmer 4 | . . . 4 Grunt 4 | . 3 . 1 Brawler 1 | . . . 1 Sentry 3 | . . . 3 Best Kill Streak 8 | . 2 1 8 Combat Bots Only 5 | . 2 . 5 Max Kills in Single Turn 3 | . 1 1 3 Gunslinging . | . . . . Exploded 2 | . . . 2 Melee . | . . . . Uniques/NPCs Destroyed . | . . . . Combat | -11 -10 -10 -9 -------- Run | Yrd Mat Min Mat Hostile Shots Fired 93 | . 29 . 64 Missed 33 | . 5 . 28 Hits 60 | . 24 . 36 Projectile 60 | . 24 . 36 Critical Strikes 2 | . . . 2 Damage Taken 917 | . 380 39 498 Core 291 | . 74 26 191 Absorbed by Shields . | . . . . Core Remaining (%) 80 | 100 . 60 . Volleys Fired 34 | . 19 1 14 Largest 2 | . 2 2 2 Hottest 60 | . 60 60 60 Shots Fired 62 | . 38 2 22 Gun 34 | . 34 . . Cannon . | . . . . Launcher 25 | . 4 2 19 Special 3 | . . . 3 Kinetic 34 | . 34 . . Thermal 3 | . . . 3 Explosive 25 | . 4 2 19 Electromagnetic . | . . . . Robot Hit Streak 8 | . 8 . 5 Robot Miss Streak 2 | . 2 . 1 Penetration Max . | . . . . Secondary Targets 1 | . 1 . . Max Gunslinging Chain 1 | . 1 . . Shots Hit Robots 27 | . 22 . 5 Core Hits 36 | . 9 1 26 Critical Kills . | . . . . Critical Parts Destroyed . | . . . . Critical Strikes . | . . . . Melee Attacks . | . . . . Impact . | . . . . Slashing . | . . . . Piercing . | . . . . Sneak Attacks . | . . . . Combat Hostiles . | . . . . Follow-up Attacks . | . . . . Damage Inflicted 1019 | . 280 69 670 Guns 239 | . 239 . . Cannons . | . . . . Explosions 778 | . 41 69 668 Melee . | . . . . Ramming . | . . . . Kinetic 239 | . 239 . . Thermal 2 | . . . 2 Explosive 778 | . 41 69 668 Electromagnetic . | . . . . Impact . | . . . . Slashing . | . . . . Piercing . | . . . . Highest Corruption . | . . . . Average Corruption . | . . . . Corruption Purged . | . . . . Corruption Blocked . | . . . . Overload Shots . | . . . . Overflow Damage 45 | . . . 45 Projectiles . | . . . . Explosions 45 | . . . 45 Melee . | . . . . Knockbacks . | . . . . Impact . | . . . . Kinetic . | . . . . Secondary . | . . . . Self-Inflicted Damage 151 | . 48 39 64 Shots 7 | . 2 1 4 Rammed . | . . . . Targets Rammed . | . . . . Kicked . | . . . . Crushed . | . . . . Highest Temperature 18 | . 18 . 9 Average Temperature 5 | . 5 . 5 Received Heat Transfer 300 | . 183 . 117 Siege Activations . | . . . . Martial Activations . | . . . . Shielding Activations . | . . . . Robots Disrupted . | . . . . Combat Hostiles . | . . . . Robots Corrupted . | . . . . Combat Hostiles . | . . . . Parts Fried . | . . . . Impact Corruptions . | . . . . Robots Melted . | . . . . Combat Hostiles . | . . . . Parts Melted . | . . . . Heat Transferred 25 | . . . 25 Parts Sabotaged . | . . . . Parts Stolen . | . . . . Parts Stripped . | . . . . Power Chain Reactions . | . . . . Alert | -11 -10 -10 -9 ------- Run | Yrd Mat Min Mat Maximum Alert Level 1 | . . . 1 Low Security (%) 95 | 100 100 100 77 Level 1 4 | . . . 22 Level 2 . | . . . . Level 3 . | . . . . Level 4 . | . . . . Level 5 . | . . . . High Security . | . . . . Max Security . | . . . . Peak Influence 300 | . 50 16 300 Initial . | . . . . Average 30 | . 10 1 131 Influence Increases 542 | . 146 16 380 Destroy 0b10 Robot/C 240 | . 60 . 180 Destroy 0b10 Robot/NC 30 | . . 5 25 Destroy Leader 50 | . 10 . 40 Successful Hack 5 | . 5 . . Disable Machine 105 | . 30 . 75 Destroy Structure 112 | . 41 11 60 Influence Decreases 282 | . 146 16 120 Time Decay 222 | . 146 16 60 Lost Part 60 | . . . 60 Squads Dispatched 2 | . 2 . . Investigation 2 | . 2 . . Extermination . | . . . . Reinforcement . | . . . . Assault . | . . . . Garrison . | . . . . Intercept . | . . . . Searches Triggered . | . . . . Construction Impeded . | . . . . Haulers Reinforced . | . . . . Active Scanning Responses . | . . . . Cargo Convoy Interrupts . | . . . . Stealth | -11 -10 -10 -9 --------- Run | Yrd Mat Min Mat Distress Signals 1 | . 1 . . Communications Jammed . | . . . . Distress Signals . | . . . . Times Spotted 18 | . 3 . 15 Peak Tracking Total 6 | . 2 . 6 Tactical Retreats . | . . . . Traps | -11 -10 -10 -9 ------- Run | Yrd Mat Min Mat Traps Triggered 2 | . 2 . . Indirectly . | . . . . Trap Hack Attempts . | . . . . Triggered . | . . . . Disarmed . | . . . . Reprogrammed . | . . . . Reused . | . . . . Traps Extracted . | . . . . Installed . | . . . . Triggered . | . . . . Machines | -11 -10 -10 -9 ---------- Run | Yrd Mat Min Mat Machines Disabled 7 | . 2 . 5 Max in Single Turn 1 | . 1 . 1 Machines Repaired . | . . . . Machines Dismantled . | . . . . Machines Sabotaged . | . . . . Overloaded Fab Kills . | . . . . Hacking | -11 -10 -10 -9 --------- Run | Yrd Mat Min Mat Machines Accessed 4 | . 4 . . Terminals 3 | . 3 . . Fabricators . | . . . . Repair Stations 1 | . 1 . . Recycling Units . | . . . . Scanalyzers . | . . . . Garrison Access . | . . . . Total Hacks 7 | . 7 . . Successful 3 | . 3 . . Failed 4 | . 4 . . Catastrophic . | . . . . Database Lockouts . | . . . . Manual 1 | . 1 . . Terminals 6 | . 6 . . Fabricators . | . . . . Repair Stations 1 | . 1 . . Recycling Units . | . . . . Scanalyzers . | . . . . Garrison Access . | . . . . Terminal Hacks 3 | . 3 . . Alert Level 1 | . 1 . . Locate Traps 1 | . 1 . . Zone Layout 1 | . 1 . . Fabricator Hacks . | . . . . Repair Station Hacks . | . . . . Recycling Unit Hacks . | . . . . Scanalyzer . | . . . . Garrison Access Hacks . | . . . . Unauthorized Hacks . | . . . . Terminals . | . . . . Fabricators . | . . . . Repair Stations . | . . . . Recycling Units . | . . . . Scanalyzers . | . . . . Garrison Access . | . . . . Data Cores Recovered . | . . . . Used . | . . . . Hacking Detections 1 | . 1 . . Full Trace Events 1 | . 1 . . Feedback Events . | . . . . Feedback Blocked . | . . . . Robot Schematics Acquired . | . . . . Robots Built . | . . . . Authchips . | . . . . Time . | . . . . Total Robot Build Rating . | . . . . Part Schematics Acquired . | . . . . Parts Built . | . . . . Authchips . | . . . . Time . | . . . . Total Part Build Rating . | . . . . Part Studies Acquired . | . . . . Parts Repaired . | . . . . Time . | . . . . Parts Recycled . | . . . . Recycled Matter . | . . . . Retrieved Matter . | . . . . Retrieved Components . | . . . . Parts Scanalyzed . | . . . . Part Schematics Acquired . | . . . . Parts Damaged . | . . . . Bothacking | -11 -10 -10 -9 ------------ Run | Yrd Mat Min Mat Used RIF Installer . | . . . . Robots Hacked . | . . . . Non-combat . | . . . . Combat . | . . . . Robot Hacks Applied . | . . . . Relay Couplers Released . | . . . . Fabnet Peak Effective % . | . . . . Robots Rewired . | . . . . Allies Hacked . | . . . . Hacks Repelled . | . . . . Allies | -11 -10 -10 -9 -------- Run | Yrd Mat Min Mat Total Allies . | . . . . Largest Group . | . . . . Highest-Rated Group . | . . . . Highest-Rated Ally . | . . . . Total Orders . | . . . . Ally Attacks . | . . . . Total Damage . | . . . . Kills . | . . . . Allies Corrupted . | . . . . Allies Melted . | . . . . Intel | -11 -10 -10 -9 ------- Run | Yrd Mat Min Mat Active Infowar (turns) 822 | . 483 174 165 Sensors 310 | . . 145 165 Terrain 672 | . 483 174 15 Robot Analysis Total . | . . . . Derelict Logs Recovered . | . . . . Drone Launches . | . . . . Drone Recoveries . | . . . . Exploration | -11 -10 -10 -9 ------------- Run | Yrd Mat Min Mat Turns Passed 914 | 78 494 174 168 Spaces Moved 494 | 45 264 105 80 Core 12 | 5 2 . 5 Treads 482 | 40 262 105 75 Legs . | . . . . Wheels . | . . . . Hover . | . . . . Flight . | . . . . Fastest Speed 50 | 50 100 160 100 Average Speed 158 | 147 159 160 157 Slowest Speed 160 | 160 160 160 160 Overloaded Moves . | . . . . Propulsion Burnouts . | . . . . Robots Hopped . | . . . . Potential Cave-ins . | . . . . Cave-ins Triggered . | . . . . Exploration Rate (%) 20 | 5 32 31 12 Regions Visited 3 Branch Regions 1 Pre-discovered Areas . | . . . . Known Exits Taken . | . . . . Unknown Exits Taken 3 | 1 1 1 . Scrap Searched 1 | . . 1 . Spaces Dug . | . . . . Terrain Destroyed 143 | . 63 11 69 Melee . | . . . . Projectile . | . . . . AOE 143 | . 63 11 69 Terrain Rammed . | . . . . Walls Destroyed . | . . . . Machines Disabled . | . . . . Actions | -11 -10 -10 -9 --------- Run | Yrd Mat Min Mat Total 569 | 57 304 110 98 Wait 1 | 1 . . . Move 491 | 44 263 104 80 Hop . | . . . . Pick Up 20 | 6 11 3 . Fast Attach 1 | . . . 1 Attach 16 | 6 8 1 1 Detach . | . . . . Swap 1 | . . . 1 Drop 5 | . 3 1 1 Fire 34 | . 19 1 14 Melee . | . . . . Ram . | . . . . Kick . | . . . . Crush . | . . . . Escape Stasis . | . . . . Rewire . | . . . . Trap . | . . . . Miscellaneous . | . . . . Route ------- -11/Scrapyard -10/Materials (discovered 2 exits: [Mat] / [*Min]) -10/Mines -9/Materials (discovered 2 exits: [*Min] / [*Sto]) History --------- Turn | Location | Event 39 | -11/Scrapyard | Discovered new exit (range 15) 79 | -11/Scrapyard | Entered Materials 80 | -10/Materials | Met a group of wandering Federalists 140 | -10/Materials | Discovered new exit (range 22) 315 | -10/Materials | Build established: Mutant 370 | -10/Materials | Discovered new exit (range 9) 573 | -10/Materials | Entered Mines 597 | -10/Mines | Found a damaged Exp. Sensor Array with a note attached 600 | -10/Mines | Found Prototype Device 602 | -10/Mines | Identified Exp. Sensor Array 728 | -10/Mines | Discovered new exit (range 12) 747 | -10/Mines | Entered Materials 747 | -9/Materials | Evolved 2 slots: Power x1, Weapon x1 889 | -9/Materials | Discovered new exit (range 16) 909 | -9/Materials | Discovered new exit (range 14) 915 | -9/Materials | Self-destructed Last Messages --------------- 00903_ Grenade Launcher destroyed. 00903_ U-05 Engineer lays Concrete. 00905_ U-05 Engineer builds a Wall. 00905_ R-06 Scavenger collects Lgt. Assault Rifle. 00905_ U-05 Engineer builds a Wall. [Achievement: There's More Where That Came From] 00908_ The unstable cave ceiling collapses. 00909_ U-05 Engineer lays Concrete. 00909_ EXIT=FOUND 00910_ U-05 Engineer lays Concrete. 00912_ K-01 Serf collects debris. 00912_ Exp. Sensor Array destroyed. 00912_ Critical hit (Burn: +37). 00912_ U-05 Engineer lays Concrete. 00913_ U-05 Engineer builds a Wall. 00913_ U-05 Engineer lays Concrete. 00913_ Welding Torch destroyed. 00914_ U-05 Engineer lays Concrete. 00915_ The unstable cave ceiling collapses. Map ----- +----------------------------------------------------+ | | | | | | | | | | | | | | | | | | | | | | | ?????????????????????????????????????????????????? | | ?????????????????????????????????????????????????? | | """"?????????????????????????????????????????????? | | """""????????????????????????????????????????????? | | """"?????????????????????????????????????????????? | | """"?????????????????????????????????????????????? | | """??????????????????##########+###??????????????? | | ??????????????????# # #??? ??????????? | | #+###########????????# ## ???????????? | | ! #????????# " < +?????????????? | | #????????# " Y# % #??????????????? | | """ #????????# #??????????????? | | ##### """ #?????#### Y#????????????????? | | ????# """ #?????# # r #????????????????? | | ???## #?????# @s #????????????????? | | ???## #?????## k*s# ### < ?????????? | | ????# """ #????## ! T ##????????????????????? | | ????# """ ###### #?????????????????????? | | #???# """ # # #?????????????????????? | | ????# # " " #?????????????????????? | | ???## = # """""#?????????????????????? | | ????# " "[ #u u"""""#?????????????????????? | | ????# " # + """""#?????????????????????? | | ????# " # # """ #?????????????????????? | | ????# + !# #?????????????????????? | | ?#### # ##/####?????????????????????? | | ?#! """= # # #? ?????????????????????????? | | #! "" = # ####? ?????????????????????????? | | #! "" ! # / %[ ?????????????????????????? | | #! # ####% "????????????????????????? | | #! ### ####??"????????????????????????? | | ##! """ #?## ##??????????????????????????????? | | ?#### """ #??###???????????????????????????????? | | ????# """ ????????????????????????????????????? | | ????# #????????????????????????????????????? | | ???? ? #????????????????????????????????????? | | ??? ?? #????????????????????????????????????? | | ??????? #????????????????????????????????????? | | ??????? #????????????????????????????????????? | +----------------------------------------------------+ Best States ------------- Heat Dissipation 28 Energy Generation 10 Energy Capacity 125 Matter Stores 339 Matter Capacity 450 Sight Range 16 Robot Scan Range 20 Terrain Scan Range 14 Terrain Scan Density 10 Evasion (%) 40 Recoil Reduction 2 Item Schematics ----------------- None Robot Schematics ------------------ None Fabricated ------------ Nothing Repaired ---------- Nothing Studied --------- None Alien Tech Used ----------------- None Achievements -------------- DATA ERROR: Steam Global Achievement% Resistances Are Futile There's More Where That Came From Challenges ------------ None Game ------ Seed DiametricSuspensionSplitter Manual? 0 Play Time 00:10:55 Cumulative 7.0 hours Start 2025.11.06 @ 14:56:08 End 2025.11.17 @ 11:52:20 Sessions 2 Manual Loads 0 Difficulty Rogue Special Mode None Game No. 13 Rogue 2 Adventurer 11 Explorer 0 Win Type - Total 0 Types 0/0/0/0/0/0/0/0/0/0 Lore% 3 Gallery% 14 Achievement% 8 Wizard Run 0 Options --------- Layout 2 ASCII 0 Keyboard 0 Movement Mouse Keybinds 0 Fullscreen 2 Font 24/Smallcaps Map View 50x44 Zoom Use 0% Tactical HUD 1 Map Filters NONE Filters NONE Steam 1 RUN: e9094bc7-bc99-445c-8485-db861ff55c39